[Event "DVM U12 2024"]
[Site "Heidelberg"]
[Date "2024.12.28"]
[Round "3"]
[White "Serwane, Ruben"]
[Black "Voelpel, Alexander"]
[Result "1-0"]
[ECO "C54"]
[WhiteElo "1799"]
[BlackElo "1628"]
[Annotator "NA RC"]
[PlyCount "119"]
[EventDate "2024.12.23"]
[EventType "team-tourn"]
[EventRounds "7"]
[EventCountry "GER"]
[SourceTitle "playchess.com"]
[Source "ChessBase"]
[SourceQuality "1"]
[TimeControl "40/5400+30:1800+30"]

1. e4 {[%emt 0:00:02]} e5 {[%emt 0:00:03]} 2. Nf3 {[%emt 0:00:12]} Nc6 {[%emt 0:00:09]} 3. Bc4 {[%emt 0:00:11]} Bc5 {[%emt 0:00:09]} 4. c3 {[%emt 0:00:26]} Nf6 {[%emt 0:00:08]} 5. d4 {[%emt 0:00:38]} exd4 {[%emt 0:00:14]} 6. cxd4 {[%emt 0:00:48]} Bb4+ {[%emt 0:00:15]} 7. Nc3 {[%emt 0:00:31]} Nxe4 {[%emt 0:00:24]} 8. O-O {[%emt 0:00:38]} Bxc3 {[%emt 0:00:25]} 9. d5 {[%emt 0:00:22]} Bf6 {[%emt 0:00:24]} 10. Re1 {[%emt 0:00:23]} Ne7 {[%emt 0:00:18]} 11. Rxe4 {[%emt 0:00:32]} O-O {[%emt 0:01:31]} 12. d6 {[%emt 0:00:59]} cxd6 {[%emt 0:01:03]} 13. Ng5 {[%emt 0:27:10]} d5 {[%emt 0:39:30]} 14. Bxd5 {[%emt 0:00:48]} Nxd5 {[%emt 0:01:11]} 15. Qxd5 {[%emt 0:00:14]} h6 {[%emt 0:03:38]} 16. Nf3 {[%emt 0:01:50]} Qb6 {[%emt 0:05:59]} 17. Be3 {[%emt 0:07:00]} Qc6 {[%emt 0:03:31]} 18. Qd3 {[%emt 0:04:35]} d5 {[%emt 0:03:32]} 19. Rb4 {[%emt 0:03:08]} b6 {[%emt 0:11:35]} 20. Rc1 {[%emt 0:01:48]} Qd6 {[%emt 0:00:23]} 21. a3 {[%emt 0:03:25]} Bb7 {[%emt 0:10:29]} 22. Bf4 {[%emt 0:01:07]} Qd8 {[%emt 0:03:06]} 23. Rc7 {[%emt 0:08:54]} Bc8 {[%emt 0:03:31]} 24. Nd4 {[%emt 0:02:52]} Re8 {[%emt 0:07:11]} 25. h3 {[%emt 0:00:39]} a5 {[%emt 0:01:51]} 26. Nc6 {[%emt 0:01:56]} Re1+ {[%emt 0:00:14]} 27. Kh2 {[%emt 0:00:06]} Qe8 {[%emt 0:00:17]} 28. Rxb6 {[%emt 0:01:42]} g5 {[%emt 0:01:48]} 29. Qg3 {[%emt 0:02:05]} Kh7 {[%emt 0:00:55]} 30. Bd2 {[%emt 0:05:02]} Re6 {[%emt 0:00:39]} 31. Bc3 {[%emt 0:02:12]} Bxc3 {[%emt 0:00:33]} 32. Qxc3 {[%emt 0:00:59]} Bd7 {[%emt 0:00:27]} 33. Rbb7 {[%emt 0:01:47]} Rxc6 {[%emt 0:00:49]} 34. Qd3+ {[%emt 0:00:07]} Kg8 {[%emt 0:00:09]} 35. Rxd7 {[%emt 0:00:30]} Qe5+ {[%emt 0:00:14]} 36. g3 {[%emt 0:01:30]} Rf6 {[%emt 0:00:17]} 37. Qe3 {[%emt 0:03:49]} Qxe3 {[%emt 0:00:40]} 38. fxe3 {[%emt 0:00:03]} Re8 {[%emt 0:00:48]} 39. Rxd5 {[%emt 0:02:32]} Rxe3 {[%emt 0:00:08]} 40. Rd2 {[%emt 0:00:17]} Rff3 {[%emt 0:00:20]} 41. Rg2 {[%emt 0:30:37]} f5 {[%emt 0:02:53]} 42. Rc2 {[%emt 0:00:00]} Re8 {[%emt 0:01:01]} 43. Ra7 {[%emt 0:00:00]} f4 {[%emt 0:00:11]} 44. gxf4 {[%emt 0:00:00]} Rxf4 {[%emt 0:00:17]} 45. Rxa5 {[%emt 0:00:00]} Rfe4 {[%emt 0:00:49]} 46. b4 {[%emt 0:00:00]} g4 {[%emt 0:01:08]} 47. b5 {[%emt 0:00:00]} gxh3 {[%emt 0:00:23]} 48. a4 {[%emt 0:00:00]} R8e5 {[%emt 0:00:43]} 49. Ra6 {[%emt 0:00:00]} Rg5 {[%emt 0:00:26]} 50. b6 {[%emt 0:00:00]} Reg4 {[%emt 0:01:42]} 51. b7 {[%emt 0:00:00]} Rg2+ {[%emt 0:00:33]} 52. Rxg2 {[%emt 0:00:00]} hxg2 {[%emt 0:00:13]} 53. b8=Q+ {[%emt 0:00:00]} Kg7 {[%emt 0:00:14]} 54. Qb7+ {[%emt 0:00:00]} Kh8 {[%emt 0:00:04]} 55. Ra8+ {[%emt 0:00:00]} Rg8 {[%emt 0:00:04]} 56. Rxg8+ {[%emt 0:00:00]} Kxg8 {[%emt 0:00:06]} 57. a5 {[%emt 0:00:00]} h5 {[%emt 0:00:15]} 58. a6 {[%emt 0:00:00]} h4 {[%emt 0:00:15]} 59. a7 {[%emt 0:00:00]} g1=B+ {[%emt 0:00:07]} 60. Kxg1 {[%emt 0:00:00]} 1-0

[Event "DVM U12 2024"]
[Site "Heidelberg"]
[Date "2024.12.28"]
[Round "3"]
[White "Vu Hoang Bach"]
[Black "Vartanian, Roman"]
[Result "1/2-1/2"]
[ECO "D30"]
[WhiteElo "1779"]
[BlackElo "1853"]
[Annotator "NA RC"]
[PlyCount "64"]
[EventDate "2024.12.23"]
[EventType "team-tourn"]
[EventRounds "7"]
[EventCountry "GER"]
[SourceTitle "playchess.com"]
[Source "ChessBase"]
[SourceQuality "1"]
[TimeControl "40/5400+30:1800+30"]

1. c4 {[%emt 0:00:04]} Nf6 {[%emt 0:00:06]} 2. g3 {[%emt 0:00:02]} c5 {[%emt 0:00:52]} 3. Bg2 {[%emt 0:00:08]} Nc6 {[%emt 0:00:11]} 4. Nf3 {[%emt 0:00:14]} e6 {[%emt 0:05:51]} 5. O-O {[%emt 0:00:14]} d5 {[%emt 0:00:04]} 6. cxd5 {[%emt 0:00:12]} exd5 {[%emt 0:00:29]} 7. d4 {[%emt 0:00:06]} Be7 {[%emt 0:09:40]} 8. dxc5 {[%emt 0:00:37]} O-O {[%emt 0:03:06]} 9. Nc3 {[%emt 0:00:17]} Bxc5 {[%emt 0:09:18]} 10. b3 {[%emt 0:00:24]} Be6 {[%emt 0:07:05]} 11. Bb2 {[%emt 0:03:15]} Ne4 {[%emt 0:08:16]} 12. Na4 {[%emt 0:06:35]} Be7 {[%emt 0:06:34]} 13. Nd4 {[%emt 0:01:52]} Nxd4 {[%emt 0:02:18]} 14. Bxd4 {[%emt 0:00:12]} b6 {[%emt 0:05:33]} 15. Rc1 {[%emt 0:03:13]} Qd7 {[%emt 0:05:40]} 16. Nc3 {[%emt 0:02:30]} f5 {[%emt 0:00:37]} 17. Qd3 {[%emt 0:02:29]} Rac8 {[%emt 0:03:29]} 18. Rfd1 {[%emt 0:00:56]} Rfd8 {[%emt 0:02:20]} 19. e3 {[%emt 0:02:45]} Bc5 {[%emt 0:04:00]} 20. Ne2 {[%emt 0:01:00]} g5 {[%emt 0:03:02]} 21. Nc3 {[%emt 0:05:58]} Qf7 {[%emt 0:01:52]} 22. a4 {[%emt 0:09:40]} h6 {[%emt 0:02:36]} 23. Nb5 {[%emt 0:04:13]} Kh7 {[%emt 0:04:11]} 24. a5 {[%emt 0:02:44]} a6 {[%emt 0:01:50]} 25. Nc3 {[%emt 0:01:26]} b5 {[%emt 0:00:27]} 26. Na2 {[%emt 0:07:21]} Be7 {[%emt 0:03:32]} 27. Bb6 {[%emt 0:00:47]} Re8 {[%emt 0:00:09]} 28. Rxc8 {[%emt 0:04:12]} Rxc8 {[%emt 0:00:08]} 29. Rc1 {[%emt 0:00:03]} Rxc1+ {[%emt 0:01:02]} 30. Nxc1 {[%emt 0:00:03]} Bf6 {[%emt 0:00:58]} 31. Ne2 {[%emt 0:00:47]} Qe7 {[%emt 0:01:45]} 32. Nd4 {[%emt 0:01:04]} Kg7 {[%emt 0:04:16]} 1/2-1/2

[Event "DVM U12 2024"]
[Site "Heidelberg"]
[Date "2024.12.28"]
[Round "3"]
[White "Wingerath, Felix"]
[Black "Rogner, Alexander Luis"]
[Result "1/2-1/2"]
[ECO "C50"]
[WhiteElo "1753"]
[BlackElo "1674"]
[Annotator "NA RC"]
[PlyCount "72"]
[EventDate "2024.12.23"]
[EventType "team-tourn"]
[EventRounds "7"]
[EventCountry "GER"]
[SourceTitle "playchess.com"]
[Source "ChessBase"]
[SourceQuality "1"]
[TimeControl "40/5400+30:1800+30"]

1. e4 {[%emt 0:00:02]} e5 {[%emt 0:00:10]} 2. Nf3 {[%emt 0:03:09]} Nc6 {[%emt 0:00:06]} 3. Bc4 {[%emt 0:00:06]} Bc5 {[%emt 0:00:35]} 4. O-O {[%emt 0:00:12]} Nf6 {[%emt 0:00:48]} 5. d4 {[%emt 0:00:32]} Bxd4 {[%emt 0:00:40]} 6. Nxd4 {[%emt 0:00:11]} Nxd4 {[%emt 0:00:12]} 7. Bg5 {[%emt 0:00:08]} d6 {[%emt 0:00:56]} 8. f4 {[%emt 0:00:10]} Be6 {[%emt 0:00:22]} 9. Bxe6 {[%emt 0:01:50]} Nxe6 {[%emt 0:00:53]} 10. Bxf6 {[%emt 0:03:14]} gxf6 {[%emt 0:00:28]} 11. fxe5 {[%emt 0:00:14]} fxe5 {[%emt 0:00:22]} 12. Nc3 {[%emt 0:00:50]} c6 {[%emt 0:01:14]} 13. Qf3 {[%emt 0:02:01]} Qe7 {[%emt 0:20:22]} 14. Ne2 {[%emt 0:01:21]} Rf8 {[%emt 0:09:09]} 15. Kh1 {[%emt 0:02:11]} O-O-O {[%emt 0:01:17]} 16. Qe3 {[%emt 0:01:23]} Kb8 {[%emt 0:01:31]} 17. b4 {[%emt 0:00:34]} Rg8 {[%emt 0:19:18]} 18. c4 {[%emt 0:00:30]} Qg5 {[%emt 0:00:31]} 19. Qxg5 {[%emt 0:02:45]} Nxg5 {[%emt 0:00:07]} 20. Ng3 {[%emt 0:01:17]} Rgf8 {[%emt 0:02:49]} 21. Rf5 {[%emt 0:00:55]} Ne6 {[%emt 0:04:57]} 22. Raf1 {[%emt 0:00:31]} Rd7 {[%emt 0:02:24]} 23. c5 {[%emt 0:08:22]} dxc5 {[%emt 0:00:23]} 24. Rxe5 {[%emt 0:00:10]} Ng7 {[%emt 0:02:42]} 25. bxc5 {[%emt 0:01:19]} b5 {[%emt 0:01:19]} 26. cxb6 {[%emt 0:00:34]} axb6 {[%emt 0:00:05]} 27. h3 {[%emt 0:00:19]} Kb7 {[%emt 0:00:13]} 28. Nf5 {[%emt 0:00:37]} Nxf5 {[%emt 0:01:57]} 29. Rexf5 {[%emt 0:00:08]} Ka6 {[%emt 0:03:17]} 30. e5 {[%emt 0:00:18]} Re7 {[%emt 0:02:25]} 31. Rh5 {[%emt 0:02:33]} Rh8 {[%emt 0:01:29]} 32. Rf6 {[%emt 0:00:21]} Rhe8 {[%emt 0:12:28]} 33. Rxc6 {[%emt 0:00:40]} Rxe5 {[%emt 0:00:19]} 34. Rxh7 {[%emt 0:00:09]} Re1+ {[%emt 0:00:26]} 35. Kh2 {[%emt 0:00:09]} R1e2 {[%emt 0:00:08]} 36. Rxf7 {[%emt 0:01:21]} Rg8 {[%emt 0:00:07]} 1/2-1/2

[Event "DVM U12 2024"]
[Site "Heidelberg"]
[Date "2024.12.28"]
[Round "3"]
[White "Mao, Leo"]
[Black "Dilger, Ludwig"]
[Result "0-1"]
[ECO "A47"]
[WhiteElo "1752"]
[BlackElo "1615"]
[Annotator "NA RC"]
[PlyCount "50"]
[EventDate "2024.12.23"]
[EventType "team-tourn"]
[EventRounds "7"]
[EventCountry "GER"]
[SourceTitle "playchess.com"]
[Source "ChessBase"]
[SourceQuality "1"]
[TimeControl "40/5400+30:1800+30"]

1. d4 {[%emt 0:00:04]} Nf6 {[%emt 0:00:09]} 2. Nf3 {[%emt 0:00:22]} e6 {[%emt 0:00:41]} 3. e3 {[%emt 0:00:19]} b6 {[%emt 0:01:37]} 4. Bd3 {[%emt 0:01:22]} Bb7 {[%emt 0:01:38]} 5. a3 {[%emt 0:02:31]} Be7 {[%emt 0:01:43]} 6. O-O {[%emt 0:00:32]} O-O {[%emt 0:00:09]} 7. b3 {[%emt 0:00:19]} d6 {[%emt 0:01:34]} 8. Nbd2 {[%emt 0:00:54]} c5 {[%emt 0:12:31]} 9. Bb2 {[%emt 0:03:20]} cxd4 {[%emt 0:09:25]} 10. exd4 {[%emt 0:00:54]} Qc7 {[%emt 0:05:09]} 11. Re1 {[%emt 0:02:32]} Nbd7 {[%emt 0:01:48]} 12. c4 {[%emt 0:38:10]} d5 {[%emt 0:13:51]} 13. Ne5 {[%emt 0:07:57]} dxc4 {[%emt 0:09:42]} 14. Bxc4 {[%emt 0:03:29]} Bd5 {[%emt 0:06:25]} 15. Bxd5 {[%emt 0:09:10]} exd5 {[%emt 0:05:51]} 16. Ng6 {[%emt 0:06:34]} fxg6 {[%emt 0:00:24]} 17. Rxe7 {[%emt 0:00:05]} Rfe8 {[%emt 0:01:20]} 18. Rc1 {[%emt 0:00:49]} Qf4 {[%emt 0:01:39]} 19. Rxe8+ {[%emt 0:01:29]} Rxe8 {[%emt 0:00:15]} 20. g3 {[%emt 0:04:43]} Qf5 {[%emt 0:01:57]} 21. Nf1 {[%emt 0:04:41]} Ng4 {[%emt 0:02:08]} 22. Qc2 {[%emt 0:01:09]} Qf3 {[%emt 0:00:41]} 23. h3 {[%emt 0:01:48]} Re2 {[%emt 0:05:26]} 24. Qc8+ {[%emt 0:06:01]} Nf8 {[%emt 0:01:14]} 25. Qxg4 {[%emt 0:01:16]} Qxf2+ {[%emt 0:00:08]} 0-1

[Event "DVM U12 2024"]
[Site "Heidelberg"]
[Date "2024.12.28"]
[Round "3"]
[White "Grabowski, Joshua"]
[Black "Hagn, Tobias"]
[Result "1-0"]
[ECO "C54"]
[WhiteElo "1745"]
[BlackElo "1670"]
[Annotator "NA RC"]
[PlyCount "109"]
[EventDate "2024.12.23"]
[EventType "team-tourn"]
[EventRounds "7"]
[EventCountry "GER"]
[SourceTitle "playchess.com"]
[Source "ChessBase"]
[SourceQuality "1"]
[TimeControl "40/5400+30:1800+30"]

1. e4 {[%emt 0:00:02]} e5 {[%emt 0:00:07]} 2. Nf3 {[%emt 0:00:03]} Nc6 {[%emt 0:00:14]} 3. Bc4 {[%emt 0:00:10]} Bc5 {[%emt 0:00:06]} 4. c3 {[%emt 0:00:07]} d6 {[%emt 0:00:17]} 5. d3 {[%emt 0:00:08]} Nf6 {[%emt 0:00:23]} 6. O-O {[%emt 0:00:17]} h6 {[%emt 0:00:31]} 7. a4 {[%emt 0:08:34]} a6 {[%emt 0:05:05]} 8. b4 {[%emt 0:05:23]} Bb6 {[%emt 0:01:39]} 9. Be3 {[%emt 0:04:37]} Bg4 {[%emt 0:07:23]} 10. Bxb6 {[%emt 0:01:45]} cxb6 {[%emt 0:00:09]} 11. Nbd2 {[%emt 0:01:47]} Nh5 {[%emt 0:06:54]} 12. h3 {[%emt 0:02:00]} Bd7 {[%emt 0:02:02]} 13. Nxe5 {[%emt 0:02:02]} Nxe5 {[%emt 0:01:57]} 14. Qxh5 {[%emt 0:00:25]} Nxc4 {[%emt 0:11:36]} 15. Nxc4 {[%emt 0:01:03]} Be6 {[%emt 0:00:31]} 16. Rfd1 {[%emt 0:05:17]} Rc8 {[%emt 0:01:11]} 17. Rac1 {[%emt 0:01:03]} O-O {[%emt 0:08:02]} 18. Ne3 {[%emt 0:02:16]} Bb3 {[%emt 0:01:32]} 19. Rd2 {[%emt 0:00:23]} Bxa4 {[%emt 0:00:38]} 20. Qd5 {[%emt 0:01:53]} Bc6 {[%emt 0:02:57]} 21. Qd4 {[%emt 0:00:12]} Bd7 {[%emt 0:03:44]} 22. Qxd6 {[%emt 0:03:59]} Rc6 {[%emt 0:00:25]} 23. Qd4 {[%emt 0:01:46]} Rg6 {[%emt 0:02:12]} 24. Kh2 {[%emt 0:05:09]} Qb8+ {[%emt 0:01:00]} 25. e5 {[%emt 0:02:52]} Rd8 {[%emt 0:02:51]} 26. Qf4 {[%emt 0:03:29]} Rf6 {[%emt 0:03:09]} 27. Qg3 {[%emt 0:03:28]} Rg6 {[%emt 0:00:55]} 28. Qf4 {[%emt 0:02:48]} Rf6 {[%emt 0:00:26]} 29. Qd4 {[%emt 0:01:20]} Be6 {[%emt 0:03:13]} 30. Qe4 {[%emt 0:03:15]} Bd7 {[%emt 0:09:35]} 31. d4 {[%emt 0:02:21]} Rg6 {[%emt 0:08:09]} 32. f4 {[%emt 0:02:29]} a5 {[%emt 0:09:43]} 33. f5 {[%emt 0:03:02]} Rf6 {[%emt 0:01:48]} 34. Nd5 {[%emt 0:01:32]} Rc6 {[%emt 0:02:44]} 35. Ne7+ {[%emt 0:00:28]} Kf8 {[%emt 0:00:23]} 36. Nxc6 {[%emt 0:01:40]} Bxc6 {[%emt 0:01:48]} 37. Qe3 {[%emt 0:02:02]} a4 {[%emt 0:00:54]} 38. Kg1 {[%emt 0:01:56]} b5 {[%emt 0:00:26]} 39. d5 {[%emt 0:02:06]} Rxd5 {[%emt 0:01:09]} 40. Rxd5 {[%emt 0:00:14]} Bxd5 {[%emt 0:00:29]} 41. Qc5+ {[%emt 0:30:11]} Ke8 {[%emt 0:30:36]} 42. Qxd5 {[%emt 0:00:16]} Qa7+ {[%emt 0:00:32]} 43. Qc5 {[%emt 0:01:13]} Qxc5+ {[%emt 0:00:27]} 44. bxc5 {[%emt 0:00:05]} Kd7 {[%emt 0:00:38]} 45. Rb1 {[%emt 0:00:15]} Kc6 {[%emt 0:00:07]} 46. e6 {[%emt 0:00:08]} fxe6 {[%emt 0:01:17]} 47. fxe6 {[%emt 0:00:09]} a3 {[%emt 0:00:19]} 48. Ra1 {[%emt 0:00:15]} Kxc5 {[%emt 0:00:21]} 49. e7 {[%emt 0:00:13]} b4 {[%emt 0:00:06]} 50. cxb4+ {[%emt 0:00:06]} Kxb4 {[%emt 0:00:11]} 51. e8=Q {[%emt 0:00:06]} Kb3 {[%emt 0:00:11]} 52. Qb5+ {[%emt 0:00:20]} Kc2 {[%emt 0:00:14]} 53. Rxa3 {[%emt 0:00:24]} Kd2 {[%emt 0:00:08]} 54. Qb2+ {[%emt 0:00:10]} Kd1 {[%emt 0:00:27]} 55. Ra1# {[%emt 0:00:10]} 1-0

[Event "DVM U12 2024"]
[Site "Heidelberg"]
[Date "2024.12.28"]
[Round "3"]
[White "Leonhardt, Max"]
[Black "Gilcher, Tamino"]
[Result "1-0"]
[ECO "D11"]
[WhiteElo "1735"]
[BlackElo "1395"]
[Annotator "NA RC"]
[PlyCount "133"]
[EventDate "2024.12.23"]
[EventType "team-tourn"]
[EventRounds "7"]
[EventCountry "GER"]
[SourceTitle "playchess.com"]
[Source "ChessBase"]
[SourceQuality "1"]
[TimeControl "40/5400+30:1800+30"]

1. Nf3 {[%emt 0:00:03]} d5 {[%emt 0:00:08]} 2. g3 {[%emt 0:00:06]} Nf6 {[%emt 0:00:06]} 3. Bg2 {[%emt 0:00:05]} Bf5 {[%emt 0:00:15]} 4. d4 {[%emt 0:00:13]} h6 {[%emt 0:00:39]} 5. O-O {[%emt 0:00:08]} e6 {[%emt 0:00:20]} 6. c4 {[%emt 0:00:18]} c6 {[%emt 0:00:12]} 7. Nc3 {[%emt 0:00:16]} Be7 {[%emt 0:00:19]} 8. b3 {[%emt 0:00:12]} Nbd7 {[%emt 0:06:03]} 9. Bb2 {[%emt 0:00:24]} O-O {[%emt 0:08:10]} 10. Nd2 {[%emt 0:01:12]} Bb4 {[%emt 0:18:13]} 11. a3 {[%emt 0:02:02]} Bxc3 {[%emt 0:04:40]} 12. Bxc3 {[%emt 0:00:17]} Re8 {[%emt 0:10:59]} 13. Re1 {[%emt 0:02:33]} Nf8 {[%emt 0:09:34]} 14. f3 {[%emt 0:02:57]} N8h7 {[%emt 0:01:50]} 15. e4 {[%emt 0:04:59]} dxe4 {[%emt 0:05:38]} 16. fxe4 {[%emt 0:00:47]} Bg4 {[%emt 0:00:20]} 17. Bf3 {[%emt 0:01:15]} Bxf3 {[%emt 0:00:21]} 18. Nxf3 {[%emt 0:00:17]} Qc7 {[%emt 0:05:05]} 19. Rc1 {[%emt 0:01:39]} Rad8 {[%emt 0:00:34]} 20. Qe2 {[%emt 0:00:52]} c5 {[%emt 0:03:47]} 21. e5 {[%emt 0:08:23]} Nd7 {[%emt 0:07:45]} 22. dxc5 {[%emt 0:02:33]} Nxc5 {[%emt 0:00:29]} 23. Nd4 {[%emt 0:01:10]} Qb6 {[%emt 0:01:02]} 24. Qb2 {[%emt 0:01:59]} Nd3 {[%emt 0:00:39]} 25. Qa1 {[%emt 0:01:02]} Nxc1 {[%emt 0:00:24]} 26. Rxc1 {[%emt 0:00:04]} Ng5 {[%emt 0:00:15]} 27. Kg2 {[%emt 0:01:41]} Ne4 {[%emt 0:01:32]} 28. Bb2 {[%emt 0:00:22]} Nd2 {[%emt 0:01:10]} 29. b4 {[%emt 0:00:31]} Ne4 {[%emt 0:01:36]} 30. Re1 {[%emt 0:05:26]} Ng5 {[%emt 0:00:35]} 31. h4 {[%emt 0:00:54]} Nh7 {[%emt 0:00:09]} 32. c5 {[%emt 0:00:57]} Qc7 {[%emt 0:00:45]} 33. Kh2 {[%emt 0:00:50]} f6 {[%emt 0:00:45]} 34. Re2 {[%emt 0:03:03]} a6 {[%emt 0:01:04]} 35. exf6 {[%emt 0:00:45]} Nxf6 {[%emt 0:00:39]} 36. Nxe6 {[%emt 0:01:29]} Qe7 {[%emt 0:02:45]} 37. Qa2 {[%emt 0:02:37]} Qf7 {[%emt 0:02:51]} 38. Bxf6 {[%emt 0:00:52]} gxf6 {[%emt 0:01:36]} 39. Nxd8 {[%emt 0:00:17]} Qxa2 {[%emt 0:00:45]} 40. Rxa2 {[%emt 0:00:08]} Rxd8 {[%emt 0:00:03]} 41. Re2 {[%emt 0:30:15]} Kf7 {[%emt 0:30:40]} 42. Re3 {[%emt 0:00:46]} h5 {[%emt 0:00:40]} 43. Kg2 {[%emt 0:00:46]} Rd4 {[%emt 0:00:34]} 44. Rb3 {[%emt 0:01:23]} Ke6 {[%emt 0:00:12]} 45. b5 {[%emt 0:02:50]} Kd5 {[%emt 0:00:43]} 46. bxa6 {[%emt 0:00:22]} bxa6 {[%emt 0:00:06]} 47. Rb6 {[%emt 0:00:10]} Ra4 {[%emt 0:00:11]} 48. Rxf6 {[%emt 0:00:38]} Kxc5 {[%emt 0:00:18]} 49. Rf5+ {[%emt 0:00:06]} Kd6 {[%emt 0:00:10]} 50. Rxh5 {[%emt 0:00:55]} Rxa3 {[%emt 0:00:09]} 51. Kh3 {[%emt 0:03:37]} Ke6 {[%emt 0:00:20]} 52. Rh8 {[%emt 0:04:40]} Kf6 {[%emt 0:00:13]} 53. h5 {[%emt 0:02:38]} Kg7 {[%emt 0:00:12]} 54. Rc8 {[%emt 0:00:51]} Kh6 {[%emt 0:00:16]} 55. Kh4 {[%emt 0:00:40]} a5 {[%emt 0:00:58]} 56. g4 {[%emt 0:00:13]} Ra4 {[%emt 0:00:23]} 57. Rc6+ {[%emt 0:01:13]} Kh7 {[%emt 0:00:11]} 58. Kg5 {[%emt 0:01:31]} Rb4 {[%emt 0:00:10]} 59. Rc7+ {[%emt 0:00:55]} Kh8 {[%emt 0:01:51]} 60. h6 {[%emt 0:00:21]} a4 {[%emt 0:00:38]} 61. h7 {[%emt 0:00:50]} Rb6 {[%emt 0:00:53]} 62. Kh5 {[%emt 0:01:46]} a3 {[%emt 0:00:12]} 63. g5 {[%emt 0:00:39]} a2 {[%emt 0:00:08]} 64. g6 {[%emt 0:02:22]} Rb8 {[%emt 0:01:17]} 65. Ra7 {[%emt 0:00:09]} Rb5+ {[%emt 0:01:58]} 66. Kh6 {[%emt 0:00:34]} a1=Q {[%emt 0:01:10]} 67. Ra8+ {[%emt 0:00:57]} 1-0

[Event "DVM U12 2024"]
[Site "Heidelberg"]
[Date "2024.12.28"]
[Round "3"]
[White "Teng, David"]
[Black "Berger, Friedrich Richard"]
[Result "1/2-1/2"]
[ECO "C54"]
[WhiteElo "1732"]
[BlackElo "1658"]
[Annotator "NA RC"]
[PlyCount "138"]
[EventDate "2024.12.23"]
[EventType "team-tourn"]
[EventRounds "7"]
[EventCountry "GER"]
[SourceTitle "playchess.com"]
[Source "ChessBase"]
[SourceQuality "1"]
[TimeControl "40/5400+30:1800+30"]

1. e4 {[%emt 0:00:11]} e5 {[%emt 0:00:07]} 2. Nf3 {[%emt 0:00:14]} Nc6 {[%emt 0:00:09]} 3. d4 {[%emt 0:00:21]} exd4 {[%emt 0:00:24]} 4. Bc4 {[%emt 0:00:18]} Bc5 {[%emt 0:00:16]} 5. c3 {[%emt 0:01:50]} Nf6 {[%emt 0:01:45]} 6. cxd4 {[%emt 0:00:49]} Bb4+ {[%emt 0:00:33]} 7. Bd2 {[%emt 0:00:46]} Bxd2+ {[%emt 0:00:40]} 8. Nbxd2 {[%emt 0:00:32]} d5 {[%emt 0:01:18]} 9. exd5 {[%emt 0:01:58]} Nxd5 {[%emt 0:00:08]} 10. O-O {[%emt 0:02:16]} O-O {[%emt 0:01:45]} 11. Ne4 {[%emt 0:04:33]} Nb6 {[%emt 0:07:22]} 12. Bb3 {[%emt 0:02:57]} Bg4 {[%emt 0:04:24]} 13. d5 {[%emt 0:05:01]} Ne5 {[%emt 0:03:34]} 14. Neg5 {[%emt 0:03:42]} Nxf3+ {[%emt 0:07:48]} 15. Nxf3 {[%emt 0:03:11]} Qf6 {[%emt 0:01:18]} 16. Rc1 {[%emt 0:00:55]} Bxf3 {[%emt 0:01:12]} 17. Qxf3 {[%emt 0:00:45]} Qxf3 {[%emt 0:00:40]} 18. gxf3 {[%emt 0:00:07]} Rac8 {[%emt 0:03:41]} 19. Rfe1 {[%emt 0:00:26]} Rfd8 {[%emt 0:01:42]} 20. Re7 {[%emt 0:03:01]} Na8 {[%emt 0:24:12]} 21. d6 {[%emt 0:09:58]} Rxd6 {[%emt 0:02:25]} 22. Rce1 {[%emt 0:00:31]} Rdd8 {[%emt 0:03:01]} 23. Rxf7 {[%emt 0:00:41]} Kh8 {[%emt 0:00:42]} 24. Ree7 {[%emt 0:02:36]} Rg8 {[%emt 0:00:36]} 25. Bd5 {[%emt 0:00:56]} c6 {[%emt 0:01:57]} 26. Be6 {[%emt 0:00:16]} Rce8 {[%emt 0:00:38]} 27. Bb3 {[%emt 0:03:46]} Rxe7 {[%emt 0:01:42]} 28. Rxe7 {[%emt 0:00:07]} Rb8 {[%emt 0:00:32]} 29. Kg2 {[%emt 0:02:15]} Nb6 {[%emt 0:01:36]} 30. Kg3 {[%emt 0:02:02]} a5 {[%emt 0:04:44]} 31. f4 {[%emt 0:01:08]} h6 {[%emt 0:01:42]} 32. Kh4 {[%emt 0:03:29]} Nd5 {[%emt 0:00:27]} 33. Rf7 {[%emt 0:05:49]} b5 {[%emt 0:01:13]} 34. Bxd5 {[%emt 0:04:19]} cxd5 {[%emt 0:00:05]} 35. Rd7 {[%emt 0:00:09]} Rc8 {[%emt 0:01:30]} 36. Rxd5 {[%emt 0:00:11]} Rc2 {[%emt 0:00:16]} 37. Rxb5 {[%emt 0:01:16]} Rxf2 {[%emt 0:00:07]} 38. Kg3 {[%emt 0:00:06]} Rd2 {[%emt 0:00:15]} 39. a4 {[%emt 0:00:56]} Rd3+ {[%emt 0:00:30]} 40. Kg4 {[%emt 0:01:54]} Rd2 {[%emt 0:00:33]} 41. h4 {[%emt 0:35:45]} g6 {[%emt 0:33:19]} 42. h5 {[%emt 0:04:51]} gxh5+ {[%emt 0:04:08]} 43. Kxh5 {[%emt 0:00:00]} Kg7 {[%emt 0:00:00]} 44. Rxa5 {[%emt 0:04:30]} Rxb2 {[%emt 0:00:03]} 45. Ra6 {[%emt 0:01:38]} Rf2 {[%emt 0:03:46]} 46. Kg4 {[%emt 0:00:24]} h5+ {[%emt 0:01:46]} 47. Kg3 {[%emt 0:03:23]} Rc2 {[%emt 0:01:36]} 48. f5 {[%emt 0:01:25]} Rc4 {[%emt 0:03:48]} 49. a5 {[%emt 0:01:46]} Rc5 {[%emt 0:02:10]} 50. Kf4 {[%emt 0:00:51]} Rc4+ {[%emt 0:02:08]} 51. Kg5 {[%emt 0:07:32]} h4 {[%emt 0:01:46]} 52. f6+ {[%emt 0:03:07]} Kf8 {[%emt 0:00:00]} 53. Ra8+ {[%emt 0:00:00]} Kf7 {[%emt 0:00:00]} 54. Ra7+ {[%emt 0:00:00]} Kf8 {[%emt 0:00:00]} 55. a6 {[%emt 0:00:00]} h3 {[%emt 0:00:00]} 56. Ra8+ {[%emt 0:00:00]} Kf7 {[%emt 0:00:00]} 57. a7 {[%emt 0:00:00]} Ra4 {[%emt 0:00:00]} 58. Rh8 {[%emt 0:00:00]} h2 {[%emt 0:00:00]} 59. Rh7+ {[%emt 0:00:00]} Kg8 {[%emt 0:00:00]} 60. Rxh2 {[%emt 0:00:00]} Rxa7 {[%emt 0:00:00]} 61. Kg6 {[%emt 0:00:00]} Rg7+ {[%emt 0:00:00]} 62. Kf5 {[%emt 0:00:00]} Rg3 {[%emt 0:00:00]} 63. Re2 {[%emt 0:00:00]} Rf3+ {[%emt 0:00:54]} 64. Ke6 {[%emt 0:00:00]} Ra3 {[%emt 0:01:12]} 65. Ke7 {[%emt 0:00:00]} Ra7+ {[%emt 0:00:34]} 66. Ke6 {[%emt 0:00:00]} Ra6+ {[%emt 0:00:27]} 67. Kf5 {[%emt 0:00:00]} Ra1 {[%emt 0:01:40]} 68. Rg2+ {[%emt 0:00:00]} Kf7 {[%emt 0:00:37]} 69. Rf2 {[%emt 0:00:34]} Rb1 {[%emt 0:01:12]} 1/2-1/2